bitfinex/quotes_ETHUSD_20251025
["timestamp","ask_amount","ask_price","bid_price","bid_amount"]
[1761406403964,0.67360299,3930.1,3930.0,0.00455]
[1761406404171,0.67360299,3930.1,3930.0,0.31695]
[1761406408229,0.1282,3930.1,3930.0,0.31695]
[1761406408796,0.67360299,3930.1,3930.0,0.31695]
[1761406408998,0.1282,3930.1,3930.0,0.31695]
[1761406409239,0.001,3930.1,3930.0,3.41060222]
[1761406409525,0.001,3930.1,3930.0,3.72300222]
[1761406414334,0.001,3930.1,3930.0,3.67300158]
[1761406426051,0.001,3930.1,3930.0,3.80020158]
[1761406427425,0.001,3930.1,3930.0,3.48780158]
[1761406427857,0.001,3930.1,3930.0,2.62627862]
[1761406428444,0.001,3930.1,3930.0,2.62827862]
[1761406435659,0.4343,3930.1,3930.0,2.62827862]
[1761406436538,0.001,3930.1,3930.0,2.62827862]
[1761406439659,0.4483,3930.1,3930.0,2.62827862]
[1761406439959,0.001,3930.1,3930.0,2.62827862]
[1761406444634,0.001,3930.1,3930.0,2.94067862]
[1761406445042,0.001,3930.1,3930.0,2.62827862]
[1761406449051,0.001,3930.1,3930.0,5.82527862]
[1761406453492,0.001,3930.1,3930.0,3.3262]
[1761406453691,0.001,3930.1,3930.0,5.87072926]
[1761406454774,0.4638,3930.1,3930.0,3.3262]
[1761406455491,0.4638,3930.1,3930.0,5.87072926]
[1761406460366,0.001,3930.1,3930.0,5.87072926]
[1761406468439,0.001,3930.1,3930.0,0.002]
[1761406468614,0.001,3930.1,3930.0,5.74252926]
[1761406469237,0.001,3930.1,3930.0,3.198]
[1761406469238,0.4638,3930.1,3930.0,3.198]
[1761406469626,0.4638,3930.1,3930.0,5.74252926]
[1761406470209,0.4638,3930.1,3930.0,3.198]
[1761406470840,0.4638,3930.1,3930.0,5.74252926]
[1761406471142,0.4638,3930.1,3930.0,3.198]
[1761406477668,0.4638,3930.1,3930.0,3.148]
[1761406478227,0.001,3930.1,3930.0,5.69452926]
[1761406483864,0.4301,3930.1,3930.0,3.15]
[1761406486173,0.001,3930.1,3930.0,5.69452926]
[1761406486365,0.001,3930.1,3930.0,5.82172926]
[1761406486572,0.001,3930.1,3930.0,6.36877357]
[1761406487355,0.001,3930.1,3930.0,3.15]
[1761406487554,0.4301,3930.1,3930.0,3.15]
[1761406487757,0.4301,3930.1,3930.0,5.69452926]
[1761406488697,0.001,3930.1,3930.0,5.69452926]
[1761406489497,0.4301,3930.1,3930.0,3.15]
[1761406489808,0.4301,3930.1,3930.0,3.198]
[1761406490801,0.4301,3930.1,3930.0,0.002]
[1761406490965,0.4301,3930.1,3930.0,3.198]
[1761406491161,0.001,3930.1,3930.0,5.74252926]
[1761406491566,0.001,3930.1,3930.0,6.28957357]
[1761406495403,0.4301,3930.1,3930.0,6.28957357]
[1761406495607,0.001,3930.1,3930.0,6.28957357]
[1761406497114,0.001,3930.1,3930.0,6.41677357]
[1761406497414,0.001,3930.1,3930.0,6.72917357]
[1761406499974,0.001,3930.1,3930.0,6.41677357]
[1761406501594,0.001,3930.1,3930.0,6.72917357]
[1761406502233,0.001,3930.1,3930.0,0.67624431]
[1761406502434,0.001,3930.1,3930.0,3.199]
[1761406502595,0.001,3930.1,3930.0,5.87072926]
[1761406506914,0.001,3930.1,3930.0,3.3262]
[1761406507114,0.4381,3930.1,3930.0,3.3262]
[1761406508222,0.001,3930.1,3930.0,5.87072926]
[1761406511171,0.001,3930.1,3930.0,3.3262]
[1761406511534,0.001,3930.1,3930.0,5.87072926]
[1761406512658,0.001,3930.1,3930.0,3.3262]
[1761406512819,0.453,3930.1,3930.0,3.3262]
[1761406515118,0.453,3930.1,3930.0,5.87072926]
[1761406515318,0.001,3930.1,3930.0,5.87072926]
[1761406517558,0.001,3930.1,3930.0,3.3262]
[1761406518647,0.453,3930.1,3930.0,3.3262]
[1761406520962,0.453,3930.1,3930.0,5.87072926]
[1761406521362,0.453,3930.1,3930.0,3.3262]
[1761406526349,0.453,3930.1,3930.0,5.87072926]
[1761406526664,0.001,3930.1,3930.0,3.197]
[1761406526862,0.5802,3930.1,3930.0,3.197]
[1761406527559,0.5802,3930.1,3930.0,5.74152926]
[1761406528656,0.1282,3930.1,3930.0,5.74152926]
[1761406530367,0.5802,3930.1,3930.0,5.74152926]
[1761406532960,0.5802,3930.1,3930.0,3.197]
[1761406533560,0.5802,3930.1,3930.0,5.74152926]
[1761406534974,0.5802,3930.1,3930.0,3.197]
[1761406536270,0.5802,3930.1,3930.0,5.74152926]
[1761406539565,1.12770055,3930.1,3930.0,5.74152926]
[1761406541376,1.12770055,3930.1,3930.0,3.197]
[1761406541579,1.12770055,3930.1,3930.0,0.002]
[1761406541880,1.12770055,3930.1,3930.0,3.197]
[1761406542083,1.71884607,3930.1,3930.0,3.197]
[1761406543483,1.12770055,3930.1,3930.0,3.197]
[1761406547380,0.67570055,3930.1,3930.0,3.197]
[1761406547811,1.10440055,3930.1,3930.0,3.197]
[1761406549210,0.67570055,3930.1,3930.0,3.197]
[1761406549413,1.10440055,3930.1,3930.0,3.197]
[1761406549614,1.28326729,3930.1,3930.0,3.197]
[1761406550702,0.85456729,3930.1,3930.0,3.197]
[1761406551216,1.28326729,3930.1,3930.0,3.197]
[1761406551412,0.85456729,3930.1,3930.0,3.197]
[1761406551717,1.28326729,3930.1,3930.0,3.197]
[1761406561423,1.28296729,3930.1,3930.0,3.197]
[1761406564454,0.85456729,3930.1,3930.0,3.197]
[1761406564659,0.67570055,3930.1,3930.0,3.197]
[1761406564961,0.67549215,3930.1,3930.0,3.197]
[1761406565855,0.67549215,3930.1,3930.0,5.74152926]
[1761406566561,0.67549215,3930.1,3930.0,3.197]
[1761406568738,0.67549215,3930.1,3930.0,5.74152926]
[1761406568938,0.001,3930.1,3930.0,6.88254646]
[1761406569433,0.001,3930.1,3930.0,7.42983861]
[1761406570764,0.001,3930.1,3930.0,6.28882141]
[1761406590944,0.001,3930.1,3930.0,3.74429215]
[1761406593489,0.001,3930.1,3930.0,6.28882141]
[1761406594094,0.001,3930.1,3930.0,3.74429215]
[1761406595415,0.001,3930.1,3930.0,6.28882141]
[1761406597780,0.001,3930.1,3930.0,6.41602141]
[1761406601303,0.54889401,3930.1,3930.0,3.197]
[1761406601484,1.32370341,3930.1,3930.0,3.197]
[1761406601686,1.11329401,3930.1,3930.0,3.197]
[1761406602081,1.79796188,3930.1,3930.0,3.197]
[1761406602283,1.11320528,3930.1,3930.0,3.197]
[1761406602484,0.001,3930.1,3930.0,3.197]
[1761406602687,0.001,3930.1,3930.0,0.002]
[1761406602688,0.54840197,3930.1,3930.0,0.002]
[1761406602931,1.11280197,3930.1,3930.0,0.002]
[1761406603116,1.11280197,3930.1,3930.0,0.527]
[1761406603479,0.67560197,3930.1,3930.0,0.527]
[1761406611202,0.1282,3930.1,3930.0,0.527]
[1761406611407,0.67560197,3930.1,3930.0,0.527]
[1761406611799,0.1282,3930.1,3930.0,0.527]
[1761406612105,0.67560197,3930.1,3930.0,0.527]
[1761406612622,0.1282,3930.1,3930.0,0.527]
[1761406612938,0.67560197,3930.1,3930.0,0.527]
[1761406613134,0.1282,3930.1,3930.0,0.527]
[1761406613297,0.67560197,3930.1,3930.0,0.527]
[1761406613497,0.1282,3930.1,3930.0,0.527]
[1761406613718,0.67560197,3930.1,3930.0,0.527]
[1761406615447,0.1282,3930.1,3930.0,0.527]
[1761406615654,0.67560197,3930.1,3930.0,0.527]
[1761406615842,0.1282,3930.1,3930.0,0.527]
[1761406616048,0.67560197,3930.1,3930.0,0.527]
[1761406616222,0.1282,3930.1,3930.0,0.527]
[1761406616553,0.67560197,3930.1,3930.0,0.527]
[1761406616858,0.1282,3930.1,3930.0,0.527]
[1761406617021,0.001,3930.1,3930.0,0.8394]
[1761406618023,0.001,3930.1,3930.0,0.527]
[1761406623643,0.001,3930.1,3930.0,0.8394]
[1761406623835,0.001,3930.1,3930.0,3.38392926]
[1761406624035,0.001,3930.1,3930.0,0.8394]
[1761406624471,0.001,3930.1,3930.0,0.527]
[1761406630471,0.4729,3930.1,3930.0,0.527]
[1761406630698,0.001,3930.1,3930.0,0.527]
[1761406630871,0.001,3930.1,3930.0,3.07152926]
[1761406631462,0.001,3930.1,3930.0,4.0149598]
[1761406631661,0.001,3930.1,3930.0,1.13258525]
[1761406631856,0.001,3930.1,3930.0,3.80158525]
[1761406632092,0.001,3930.1,3930.0,6.34611451]
[1761406632279,0.001,3930.1,3930.0,3.80158525]
[1761406632485,0.001,3930.1,3930.0,6.34611451]
[1761406633059,0.001,3930.1,3930.0,4.11398525]
[1761406633499,0.001,3930.1,3930.0,6.34611451]
[1761406633800,0.001,3930.1,3930.0,6.65851451]
[1761406634598,0.001,3930.1,3930.0,7.16539451]
[1761406634784,0.001,3930.1,3930.0,8.09136177]
[1761406634984,0.001,3930.1,3930.0,9.64656177]
[1761406635597,0.001,3930.1,3930.0,6.45256177]
[1761406635793,0.001,3930.1,3930.0,11.65635187]
[1761406638305,0.001,3930.1,3930.0,10.73038461]
[1761406640279,0.001,3930.1,3930.0,11.65635187]
[1761406660969,0.001,3930.1,3930.0,11.34395187]
[1761406661667,0.001,3930.1,3930.0,11.65635187]
[1761406664254,0.001,3930.1,3930.0,11.34395187]
[1761406664453,0.001,3930.1,3930.0,10.79181761]
[1761406669061,0.001,3930.1,3930.0,10.41798461]
[1761406673351,0.001,3930.1,3930.0,5.31598461]
[1761406673665,0.001,3930.1,3930.0,10.41598461]
[1761406681250,0.001,3930.1,3930.0,5.31598461]
[1761406681455,0.001,3930.1,3930.0,10.41598461]
[1761406683106,0.4573,3930.1,3930.0,10.41598461]
[1761406685190,0.001,3930.1,3930.0,10.41598461]
[1761406686481,0.001,3930.1,3930.0,10.31419451]
[1761406688289,0.4469,3930.1,3930.0,10.31419451]
[1761406688495,0.001,3930.1,3930.0,10.31419451]
[1761406707680,0.001,3930.1,3930.0,10.8584121]
[1761406708752,0.001,3930.1,3930.0,11.2322451]
[1761406719406,0.001,3930.1,3930.0,11.9915451]
[1761406719905,0.001,3930.1,3930.0,11.6791451]
[1761406727730,0.001,3930.1,3930.0,11.9915451]
[1761406728443,0.001,3930.1,3930.0,11.6791451]
[1761406733439,0.001,3930.1,3930.0,11.9915451]
[1761406735930,0.001,3930.1,3930.0,11.6791451]
[1761406736140,0.001,3930.1,3930.0,11.9915451]
[1761406738460,0.001,3930.1,3930.0,11.6791451]
[1761406756374,0.001,3930.1,3930.0,12.1187451]
[1761406758820,0.001,3930.5,3930.0,12.1187451]
[1761406758821,0.021,3930.9,3930.8,3.05089139]
[1761406759006,0.021,3930.9,3930.8,8.40324649]
[1761406759625,0.021,3930.9,3930.8,8.63804649]
[1761406763527,0.021,3930.9,3930.8,10.54504649]
[1761406768849,0.021,3930.9,3930.8,10.67224649]
[1761406769052,0.021,3930.9,3930.8,11.04607949]
[1761406770368,0.2348,3931.9,3931.8,2.54336436]
[1761406770543,0.2348,3931.9,3931.8,5.73436436]
[1761406770728,0.2348,3931.9,3931.8,5.86156436]
[1761406787078,0.2348,3931.9,3931.8,6.09636436]
[1761406796310,0.2348,3931.9,3931.8,6.60324436]
[1761406798887,0.5694,3931.9,3931.8,6.60324436]
[1761406799115,0.3556,3931.9,3931.8,6.60324436]
[1761406799521,0.021,3931.9,3931.8,6.60324436]
[1761406801503,0.021,3931.9,3931.8,7.51791339]
[1761406805900,0.001,3932.1,3931.8,7.51791339]
[1761406806134,0.001,3932.1,3931.9,5.98393026]
[1761406806706,0.001,3932.1,3931.9,6.0856779]
[1761406807727,0.001,3932.1,3931.9,5.6251779]
[1761406807933,0.001,3932.1,3931.9,6.68726199]
[1761406808329,0.001,3932.1,3931.9,6.1430444]
[1761406809223,0.001,3932.1,3931.9,6.5860444]
[1761406809418,0.001,3932.1,3931.9,6.1430444]
[1761406812555,0.001,3932.7,3931.9,6.1430444]
[1761406812556,0.001,3933.4,3933.1,3.0494037]
[1761406812848,0.001,3933.4,3933.1,4.98918313]
[1761406813138,0.001,3933.4,3933.1,8.1494037]
[1761406813337,0.001,3933.4,3933.1,8.25112288]
[1761406813645,0.001,3933.4,3933.1,8.55621202]
[1761406816103,0.001,3933.4,3933.1,8.68341202]
[1761406823249,0.001,3933.4,3933.1,10.23861202]
[1761406823453,1e-08,3933.4,3933.3,4.60447442]
[1761406823619,1e-08,3933.4,3933.3,6.28670464]
[1761406823819,1e-08,3933.4,3933.3,6.85690464]
[1761406824247,1e-08,3933.4,3933.3,6.95860494]
[1761406835921,1e-08,3933.4,3933.3,6.51560494]
[1761406836122,1e-08,3933.4,3933.3,5.74804375]
[1761406836545,1e-08,3933.4,3933.3,6.19104375]
[1761406837559,1e-08,3933.4,3933.3,5.74804375]
[1761406838561,0.33710001,3933.4,3933.3,9.42249472]
[1761406840494,0.33710001,3933.4,3933.3,9.92937472]
[1761406843383,0.33710001,3933.4,3933.3,9.93137472]
[1761406846953,0.33710001,3933.4,3933.3,9.82967442]
[1761406847586,1e-08,3933.4,3933.3,9.82967442]
[1761406848403,1e-08,3933.4,3933.3,11.15684094]
[1761406849876,1e-08,3933.4,3933.3,9.82967442]
[1761406850219,0.33710001,3933.4,3933.3,9.82967442]
[1761406854223,1e-08,3933.4,3933.3,9.82967442]
[1761406860434,1e-08,3933.4,3933.3,10.25990618]
[1761406864438,1e-08,3933.4,3933.3,10.69350618]
[1761406864625,1e-08,3933.4,3933.3,12.41127304]
[1761406865129,1e-08,3933.4,3933.3,11.97767304]
[1761406867607,1e-08,3933.4,3933.3,11.54744128]
[1761406873607,1e-08,3933.4,3933.3,9.63944128]
[1761406880478,0.33490001,3933.4,3933.3,7.28959442]
[1761406880837,0.33490001,3933.4,3933.3,7.79647442]
[1761406884571,1e-08,3933.4,3933.3,7.79647442]
[1761406885139,0.33490001,3933.4,3933.3,7.79647442]
[1761406885961,1e-08,3933.4,3933.3,7.79647442]
[1761406890477,1e-08,3933.4,3933.3,7.92367442]
[1761406891146,0.33490001,3933.4,3933.3,7.92367442]
[1761406891485,0.33490001,3933.4,3933.3,0.1292]
[1761406891678,0.33490001,3933.4,3933.3,5.73339442]
[1761406901498,0.33490001,3933.4,3933.3,5.86059442]
[1761406920926,1e-08,3933.4,3933.3,2.67159442]
[1761406921124,1e-08,3933.4,3933.3,5.86059442]
[1761406921337,0.33490001,3933.4,3933.3,5.86059442]
[1761406926742,0.33490001,3933.4,3933.3,6.19549443]
[1761406934466,1e-08,3933.4,3933.3,6.19549443]
[1761406941813,1e-08,3933.4,3933.3,6.70237443]
[1761406942017,1e-08,3933.4,3933.3,7.14437443]
[1761406943424,1e-08,3933.4,3933.3,6.70237443]
[1761406943597,1e-08,3933.4,3933.3,7.14437443]
[1761406946736,1e-08,3933.4,3933.3,8.11306247]
[1761406947332,1e-08,3933.4,3933.3,10.0055919]
[1761406950940,1e-08,3933.4,3933.3,9.66826247]
[1761406951137,1e-08,3933.4,3933.3,10.0055919]
[1761406951742,1e-08,3933.4,3933.3,9.66826247]
[1761406958476,1e-08,3933.4,3933.3,9.22626247]
[1761406959669,1e-08,3933.4,3933.3,9.68886247]
[1761406964053,1e-08,3933.4,3933.3,9.22626247]
[1761406964468,1e-08,3933.4,3933.3,9.68886247]
[1761406966482,1e-08,3933.4,3933.3,8.71838247]
[1761406966778,1e-08,3933.4,3933.3,8.25657443]
[1761406966984,1e-08,3933.4,3933.3,7.74969443]
[1761406967559,0.42920001,3933.4,3933.3,8.25657443]
[1761406969764,1e-08,3933.4,3933.3,8.46644723]
[1761406970297,1e-08,3933.4,3933.3,10.07296573]
[1761406970973,1e-08,3933.4,3933.3,9.61036573]
[1761406971170,1e-08,3933.4,3933.3,9.27329293]
[1761406976804,1e-08,3933.4,3933.3,10.07296573]
[1761406977207,1e-08,3933.4,3933.3,9.61036573]
[1761406979804,1e-08,3933.4,3933.3,9.73756573]
[1761406982008,1e-08,3933.4,3933.3,10.19156573]
[1761406984508,1e-08,3933.4,3933.3,9.04764723]
[1761406987022,1e-08,3933.4,3933.3,8.59364723]
[1761406989116,1e-08,3933.4,3933.3,10.49964723]
[1761406991110,0.43980001,3933.4,3933.3,10.49964723]
[1761406991620,1e-08,3933.4,3933.3,10.49964723]
[1761406994226,0.43980001,3933.4,3933.3,10.16257443]
[1761406994586,1e-08,3933.4,3933.3,10.16257443]
[1761406996692,0.43980001,3933.4,3933.3,10.16257443]
[1761406997488,1e-08,3933.4,3933.3,10.16257443]
[1761406997705,1e-08,3933.4,3933.3,10.49964723]
[1761406998840,1e-08,3933.4,3933.3,8.59364723]
[1761407006644,0.43980001,3933.4,3933.3,8.59364723]
[1761407009516,1e-08,3933.4,3933.3,8.59364723]
[1761407011615,0.43980001,3933.4,3933.3,3.51337443]
[1761407011821,0.43980001,3933.4,3933.3,6.36647442]
[1761407013324,1e-08,3933.4,3933.3,6.36647442]
[1761407015819,1e-08,3933.4,3933.3,6.80727442]
[1761407018551,0.43980001,3933.4,3933.3,6.80727442]
[1761407020455,1e-08,3933.4,3933.3,6.80727442]
[1761407022071,0.43980001,3933.4,3933.3,6.80727442]
[1761407024369,0.43980001,3933.4,3933.3,3.19]
[1761407024958,0.43980001,3933.4,3933.3,5.73239442]
[1761407027370,0.43980001,3933.4,3933.3,3.19]
[1761407027571,0.43980001,3933.4,3933.3,5.73239442]
[1761407031906,0.43980001,3933.4,3933.3,3.19]
[1761407038606,0.56700001,3933.4,3933.3,3.19]
[1761407040220,0.56700001,3933.4,3933.3,5.73239442]
[1761407040421,0.56700001,3933.4,3933.3,3.19]
[1761407041716,0.56700001,3933.4,3933.3,5.73239442]
[1761407043825,0.56700001,3933.4,3933.3,3.19]
[1761407045244,0.92209457,3933.4,3933.3,3.19]
[1761407047607,0.92209457,3933.4,3933.3,0.002]
[1761407047821,0.56700001,3933.4,3933.3,3.19]
[1761407049435,3.1093298,3933.4,3933.3,3.19]
[1761407056245,3.65543779,3933.4,3933.3,3.19]
[1761407056549,3.1093298,3933.4,3933.3,3.19]
[1761407059075,3.65538923,3933.4,3933.3,3.19]
[1761407059265,4.35167295,3933.4,3933.3,3.19]
[1761407067707,5.11487345,3933.4,3933.3,3.19]
[1761407074713,5.11487345,3933.4,3933.3,0.002]
[1761407076857,4.35167295,3933.4,3933.3,0.002]
[1761407078253,5.03431369,3933.4,3933.3,0.002]
[1761407078621,5.79757827,3933.4,3933.3,0.002]
[1761407081662,6.67013753,3933.4,3933.3,0.002]
[1761407086196,6.24603753,3933.4,3933.3,0.002]
[1761407086382,6.92947885,3933.4,3933.3,0.002]
[1761407087692,6.24603753,3933.4,3933.3,0.002]
[1761407094866,6.24703753,3933.4,3933.3,0.002]
[1761407104325,7.1565743,3933.4,3933.3,0.002]
[1761407105490,7.14087429,3933.4,3933.3,0.002]
[1761407106388,6.37760971,3933.4,3933.3,0.002]
[1761407109496,6.39760971,3933.4,3933.3,0.002]
[1761407112525,6.37760971,3933.4,3933.3,0.002]
[1761407113435,6.39760971,3933.4,3933.3,0.002]
[1761407114954,6.37760971,3933.4,3933.3,0.002]
[1761407116433,5.48807294,3933.4,3933.3,0.002]
[1761407116636,5.46807294,3933.4,3933.3,0.002]
[1761407119052,5.48807294,3933.4,3933.3,0.002]
[1761407123067,5.46807294,3933.4,3933.3,0.002]
[1761407124333,4.92201351,3933.4,3933.3,0.002]
[1761407124829,5.46941652,3933.4,3933.3,0.002]
[1761407126074,4.92201351,3933.4,3933.3,0.002]
[1761407127353,5.46953288,3933.4,3933.3,0.002]
[1761407127678,5.469679,3933.4,3933.3,0.002]
[1761407131396,4.92201351,3933.4,3933.3,0.002]
[1761407131607,5.46969345,3933.4,3933.3,0.002]
[1761407136600,5.48969345,3933.4,3933.3,0.002]
[1761407136903,5.46969345,3933.4,3933.3,0.002]
[1761407142824,5.48969345,3933.4,3933.3,0.002]
[1761407144805,5.46969345,3933.4,3933.3,0.002]
[1761407156791,5.46969345,3933.4,3933.3,0.4545]
[1761407156986,4.77340973,3933.4,3933.3,0.4545]
[1761407157201,5.68653663,3933.4,3933.3,0.4545]
[1761407158202,4.77340973,3933.4,3933.3,0.4545]
[1761407160230,5.68653663,3933.4,3933.3,0.4545]
[1761407161242,4.77340973,3933.4,3933.3,0.4545]
[1761407174478,5.45784372,3933.4,3933.3,0.4545]
[1761407175054,4.77340973,3933.4,3933.3,0.4545]
[1761407175277,6.34935724,3933.4,3933.3,0.4545]
[1761407176843,5.66493154,3933.4,3933.3,0.4545]
[1761407181801,5.66485283,3933.4,3933.3,0.4545]
[1761407187607,5.665126,3933.4,3933.3,0.4545]
[1761407208520,4.77360419,3933.4,3933.3,0.4545]
[1761407209089,4.77360419,3933.4,3933.3,0.909]
[1761407214327,5.45885591,3933.4,3933.3,0.909]
[1761407221445,5.45885591,3933.4,3933.3,0.8862]
[1761407227159,5.45885591,3933.4,3933.3,0.4565]
[1761407227356,5.76422464,3933.4,3933.3,0.4565]
[1761407227541,5.66522464,3933.4,3933.3,0.4565]
[1761407232958,5.76422464,3933.4,3933.3,0.002]
[1761407240772,6.67735154,3933.4,3933.3,0.002]
[1761407251765,9.71358438,3933.4,3933.3,0.002]
[1761407266530,9.61458438,3933.4,3933.3,0.002]
[1761407267228,9.71358438,3933.4,3933.3,0.002]
[1761407269135,6.42858438,3933.4,3933.3,0.002]
[1761407273742,6.52758438,3933.4,3933.3,0.002]
[1761407275040,6.42858438,3933.4,3933.3,0.002]
[1761407277313,7.7973828,3933.4,3933.3,0.002]
[1761407281117,7.8963828,3933.4,3933.3,0.002]
[1761407284253,7.7973828,3933.4,3933.3,0.002]
[1761407285552,7.03402306,3933.4,3933.3,0.002]
[1761407285756,7.50192306,3933.4,3933.3,0.002]
[1761407286266,4.64640419,3933.4,3933.3,0.4699]
[1761407286428,4.64640419,3933.4,3933.3,0.9378]
[1761407286635,5.3322783,3933.4,3933.3,0.9378]
[1761407288153,4.64640419,3933.4,3933.3,0.9378]
[1761407296274,4.77360419,3933.4,3933.3,0.9378]
[1761407310610,5.39263911,3933.4,3933.3,0.4699]
[1761407310824,5.39263911,3933.4,3933.3,0.002]
[1761407310825,5.49163911,3933.4,3933.3,0.002]
[1761407311128,6.17751322,3933.4,3933.3,0.002]
[1761407311289,6.07851322,3933.4,3933.3,0.002]
[1761407312124,5.39263911,3933.4,3933.3,0.002]
[1761407312719,6.07753069,3933.4,3933.3,0.002]
[1761407313224,5.39263911,3933.4,3933.3,0.002]
[1761407320618,5.39263911,3933.4,3933.3,0.437]
[1761407324615,5.39263911,3933.4,3933.3,0.002]
[1761407324807,5.39263911,3933.4,3933.3,0.437]
[1761407332529,5.39263911,3933.4,3933.3,0.002]
[1761407334549,5.34263911,3933.4,3933.3,0.002]
[1761407340036,5.34263911,3933.4,3933.3,0.4524]
[1761407340330,4.72360419,3933.4,3933.3,0.4524]
[1761407342268,2.1812744,3933.4,3933.3,0.4524]
[1761407342954,2.1812744,3933.4,3933.3,3.6374]
[1761407343477,2.86681219,3933.4,3933.3,3.6374]
[1761407347645,5.40914198,3933.4,3933.3,3.6374]
[1761407351879,2.86681219,3933.4,3933.3,3.6374]
[1761407352183,5.40914198,3933.4,3933.3,3.6374]
[1761407354816,5.40914198,3933.4,3933.3,3.187]
[1761407355304,5.40914198,3933.4,3933.3,3.6482]
[1761407360475,2.86681219,3933.4,3933.3,3.6482]
[1761407362001,5.40914198,3933.4,3933.3,3.6482]
[1761407364015,4.72360419,3933.4,3933.3,3.6482]
[1761407370896,4.72360419,3933.4,3933.3,3.187]
[1761407373228,4.72360419,3933.4,3933.3,3.6482]
[1761407373229,2.1812744,3933.4,3933.3,3.6482]
[1761407373594,4.72360419,3933.4,3933.3,3.6482]
[1761407376244,4.72360419,3933.4,3933.3,3.187]
[1761407385447,4.72360419,3933.4,3933.3,3.6501]
[1761407385947,4.72360419,3933.4,3933.3,3.187]
[1761407386757,5.61038316,3933.4,3933.3,0.002]
[1761407386937,5.70978316,3933.4,3933.3,3.187]
[1761407387266,6.39573892,3933.4,3933.3,3.187]
[1761407387474,6.29633892,3933.4,3933.3,3.187]
[1761407396097,6.29633892,3933.4,3933.3,0.002]
[1761407396283,6.39573892,3933.4,3933.3,3.187]
[1761407396671,6.29633892,3933.4,3933.3,3.187]
[1761407403499,5.40955995,3933.4,3933.3,3.617]
[1761407404194,5.40955995,3933.4,3933.3,3.187]
[1761407408477,5.40955995,3933.4,3933.3,3.626]
[1761407410200,2.86723016,3933.4,3933.3,3.626]
[1761407410601,5.40955995,3933.4,3933.3,3.626]
[1761407411298,2.86723016,3933.4,3933.3,3.626]
[1761407412107,5.40955995,3933.4,3933.3,3.626]
[1761407418711,2.86723016,3933.4,3933.3,3.626]
[1761407418913,1.36203016,3933.4,3933.3,3.626]
[1761407419092,0.5488744,3933.4,3933.3,7.13962035]
[1761407419291,0.5488744,3933.4,3933.3,7.87726297]
[1761407419292,0.001,3933.4,3933.3,7.87726297]
[1761407419491,0.001,3933.4,3933.3,5.33486855]
[1761407419916,0.001,3933.4,3933.3,7.87726297]
[1761407429200,0.001,3933.4,3933.3,8.00446297]
[1761407432659,0.001,3933.4,3933.3,5.33486855]
[1761407433454,0.001,3933.4,3933.3,2.14986855]
[1761407433637,0.001,3933.4,3933.3,7.87626297]
[1761407434158,0.001,3933.4,3933.3,4.69226297]
[1761407434341,0.001,3933.4,3933.3,7.87626297]
[1761407438437,0.001,3933.4,3933.3,5.33386855]
[1761407438962,0.001,3933.4,3933.3,4.89486855]
[1761407439848,0.001,3933.4,3933.3,7.43726297]
[1761407440252,0.001,3933.4,3933.3,7.89056297]
[1761407445030,0.001,3933.4,3933.3,4.89486855]
[1761407445444,0.001,3933.4,3933.3,0.76506656]
[1761407445643,0.2272,3933.4,3933.3,3.94806656]
[1761407448710,0.2272,3933.4,3933.3,3.185]
[1761407450865,0.2272,3933.4,3933.3,0.002]
[1761407451065,0.2272,3933.4,3933.3,3.186]
[1761407452275,0.50434708,3933.4,3933.3,3.186]
[1761407454384,0.1282,3933.4,3933.3,3.186]
[1761407458579,0.2272,3933.4,3933.3,3.186]
[1761407462483,0.1282,3933.4,3933.3,3.186]
[1761407464275,0.2272,3933.4,3933.3,0.002]
[1761407464479,4.19752979,3933.4,3933.3,0.86]
[1761407464697,5.47429284,3933.4,3933.3,0.86]
[1761407465209,5.47429284,3933.4,3933.3,0.002]
[1761407465411,5.47429284,3933.4,3933.3,3.186]
[1761407466478,5.47429284,3933.4,3933.3,0.002]
[1761407470396,5.37529284,3933.4,3933.3,0.002]
[1761407470606,5.47429284,3933.4,3933.3,0.002]
[1761407474495,5.60149284,3933.4,3933.3,0.002]
[1761407482513,6.2874486,3933.4,3933.3,0.002]
[1761407485941,5.60149284,3933.4,3933.3,0.002]
[1761407492151,8.78549284,3933.4,3933.3,0.002]
[1761407492358,9.69993039,3933.4,3933.3,0.002]
[1761407495325,8.78549284,3933.4,3933.3,0.002]
[1761407499766,15.17549284,3933.4,3933.3,0.002]
[1761407500058,15.17549284,3933.4,3932.9,0.002]
[1761407500059,2.54258835,3933.0,3932.9,0.002]
[1761407500262,8.86950884,3933.0,3932.9,0.002]
[1761407500467,8.96850884,3933.0,3932.9,0.002]
[1761407502665,15.35850884,3933.0,3932.9,0.002]
[1761407505954,15.35804856,3933.0,3932.9,0.002]
[1761407506170,17.40993059,3933.0,3932.9,0.002]
[1761407506369,17.50893059,3933.0,3932.9,0.002]
[1761407507173,17.40993059,3933.0,3932.9,0.002]
[1761407509173,14.22593059,3933.0,3932.9,0.002]
[1761407509343,17.41093059,3933.0,3932.9,0.002]
[1761407510476,17.85793059,3933.0,3932.9,0.002]
[1761407514276,16.94521484,3933.0,3932.9,0.002]
[1761407522687,13.76021484,3933.0,3932.9,0.4621]
[1761407522887,11.16233281,3933.0,3932.9,0.4621]
[1761407523068,12.07572639,3933.0,3932.9,0.4621]
[1761407528390,11.16233281,3933.0,3932.9,0.4621]
[1761407530299,11.16233281,3933.0,3932.9,0.002]
[1761407530485,12.84704327,3933.0,3932.9,0.002]
[1761407530683,12.84704327,3933.0,3932.9,0.4625]
[1761407531190,14.21643476,3933.0,3932.9,0.4625]